Cogmind - Beta 14 @@@ ROGUE MODE // 2024.11.20 @ 23:00:19 Player: naththebg Result: Destroyed by P-80 Master with Gamma Rifle Performance ------------- Evolutions (9) 4500 Regions Visited (14) 2800 Robots Destroyed (107) 535 Value Destroyed (3206) 3206 Prototype IDs (48) 960 Alien Tech Used (0) 0 Bonus (5758) 5758 TOTAL SCORE: 17759 Bonus ------- High Alert Combat Kills 8 Follower Combat Kills 85 Entered DSFs 500 Aligned with FarCom 300 Met MAIN.C 5000 Friendly Fire -135 Cogmind --------- Core Integrity 0/1600 Matter 21/300 Energy 5/100 System Corruption 24% Temperature Cool (0) Movement Core (300) Ox5 Location -1/Command Parts ------- > --- POWER (3) -------- (None) > --- PROPULSION (8) --- (None) > --- UTILITY (11) ----- Graphene Brace Advanced Hacking Suite Advanced Hacking Suite Improved System Shield > --- WEAPON (3) ------- Enhanced Force Lance Enhanced Force Lance > --- INVENTORY (5) ---- Fusion Bomb Launcher Fusion Bomb Launcher Fusion Bomb Launcher Peak State ------------ > --- POWER ------------ Particle Reactor Light Particle Reactor Micro Antimatter Reactor > --- PROPULSION ------- Improved Antigrav System Improved Antigrav System Combat Antigrav System Antigrav Array Cooled Linear Gravjet Combat Linear Gravjet Combat Linear Gravjet > --- UTILITY ---------- Advanced Power Amplifier Advanced Heat Sink Advanced Heat Sink Improved Reaction Control System Advanced Phase Shifter Cloak of Protection Improved Power Shielding Graphene Brace Advanced Hacking Suite Advanced Hacking Suite Improved System Shield > --- WEAPON ----------- Enhanced Force Lance Enhanced Force Lance Enhanced Force Lance > --- INVENTORY -------- Launcher Loader Fusion Bomb Launcher Fusion Bomb Launcher Fusion Bomb Launcher [Rating: 183] Favorites ----------- Power Improved Ion Engine Engine Improved Ion Engine Power Core Micro Nuclear Core Reactor Micro Antimatter Reactor Propulsion Light Treads Treads Light Treads Leg Carbon-fiber Leg Wheel Armored Huge Wheel Hover Unit Improved Antigrav System Flight Unit Cesium-ion Thruster Utility Advanced Hacking Suite Device Improved Reaction Control System Storage Large Storage Unit Processor Improved Signal Interpreter Hackware Advanced Hacking Suite Protection Improved Utility Shielding Weapon Enhanced Force Lance Energy Gun Backup Laser III Energy Cannon Disruptor Cannon Ballistic Gun Assault Rifle Launcher Grenade Launcher Special Weapon Improved Remote Datajack Impact Weapon Power Maul Slashing Weapon Great Axe Piercing Weapon Enhanced Force Lance Special Melee Weapon Improved Datajack Build | -11 -10 -10 -10 -9 -8 -7 -6 -5 -4 -3 -3 -2 -1 -1 ------- Run | Yrd Mat Min Exi Min Mat Fac Fac Fac Fac Res DSF Res Acc Com Slots Evolved 18 | . . . . . 4 2 2 2 2 2 . 2 2 . Power 2 | . . . . . . 1 . . . . . . 1 . Propulsion 6 | . . . . . 2 1 . 1 1 . . 1 . . Utility 9 | . . . . . 2 . 2 1 1 1 . 1 1 . Weapon 1 | . . . . . . . . . . 1 . . . . Parts Attached 196 | 7 7 1 . 2 7 21 17 26 37 4 19 25 12 11 Power 21 | 1 1 . . . . 2 2 3 5 . 2 3 2 . Engine 10 | 1 1 . . . . 2 2 3 . . . 1 . . Core 4 | . . . . . . . . . 2 . 2 . . . Reactor 7 | . . . . . . . . . 3 . . 2 2 . Propulsion 62 | 2 3 . . . 2 8 7 12 7 1 6 8 3 3 Treads 6 | 2 3 . . . . 1 . . . . . . . . Leg 8 | . . . . . . . 5 3 . . . . . . Wheel 1 | . . . . . . 1 . . . . . . . . Hover 30 | . . . . . . . 1 8 7 . . 8 3 3 Flight 17 | . . . . . 2 6 1 1 . 1 6 . . . Utility 65 | 2 2 1 . . 3 4 6 6 12 3 4 10 5 7 Device 34 | 1 . 1 . . 2 2 1 2 6 2 3 7 4 3 Storage 6 | 1 2 . . . . . 1 . 1 . . 1 . . Processor 6 | . . . . . 1 1 . . 2 . 1 1 . . Hackware 13 | . . . . . . . 4 4 2 1 . . . 2 Protection 6 | . . . . . . 1 . . 1 . . 1 1 2 Artifact . | . . . . . . . . . . . . . . . Weapon 48 | 2 1 . . 2 2 7 2 5 13 . 7 4 2 1 Energy Gun 1 | . . . . . . . . . . . . 1 . . Energy Cannon 3 | . . . . . . . . 1 2 . . . . . Ballistic Gun 4 | 2 . . . 2 . . . . . . . . . . Ballistic Cannon . | . . . . . . . . . . . . . . . Launcher 12 | . 1 . . . 2 1 1 2 4 . . . . 1 Special Weapon 3 | . . . . . . . . . 3 . . . . . Impact Weapon 1 | . . . . . . . 1 . . . . . . . Slashing Weapon 6 | . . . . . . 5 . . 1 . . . . . Piercing Weapon 13 | . . . . . . . . . 2 . 7 3 1 . Special Melee Weapon 5 | . . . . . . 1 . 2 1 . . . 1 . Unidentified Prototypes 4 | . . 1 . . . . 1 . 1 . . 1 . . Corrupted Parts 1 | . . . . . . . . . . . . 1 . . System Corruption 1 | . . . . . . . . . . . . 1 . . Parts Lost 72 | . . . . 1 1 3 6 1 19 . 18 2 1 20 Power 11 | . . . . . . . . . 3 . 3 1 1 3 Propulsion 32 | . . . . . . 1 5 . 8 . 9 1 . 8 Utility 22 | . . . . . . 2 1 1 4 . 5 . . 9 Weapon 7 | . . . . 1 1 . . . 4 . 1 . . . Highest Loss Streak 18 | . . . . 1 1 2 5 1 15 . 10 1 1 18 To Critical Strikes . | . . . . . . . . . . . . . . . Average Slot Usage (%) 91 | . 100 100 100 100 85 88 93 99 92 55 73 60 95 91 Engine 8 | . 14 14 14 14 9 8 12 10 3 . . 3 . . Reactor 2 | . . . . . . . . . 5 . . 2 12 11 Treads 11 | . 28 28 28 28 18 10 . . . . . . . . Leg 2 | . . . . . . . 21 17 . . . . . . Hover 8 | . . . . . . . 2 16 31 4 . 14 27 26 Flight 5 | . . . . . 9 22 3 . . . 13 . . . Device 12 | . 14 14 14 14 14 9 6 7 8 7 11 10 18 24 Storage 7 | . 14 14 14 14 9 7 6 5 4 . . 1 1 . Processor 3 | . . . . . 6 7 6 5 1 4 7 4 5 . Hackware 7 | . . . . . . . 20 20 21 27 19 13 12 12 Protection 2 | . . . . . . 4 . . 4 . . . 5 5 Ballistic Gun 4 | . 15 14 14 14 . . . . . . . . . . Launcher 5 | . 12 14 14 14 17 4 . . . . . . . . Slashing Weapon 1 | . . . . . . 4 6 5 1 . . . . . Piercing Weapon 2 | . . . . . . . . . 2 . 9 4 12 11 Special Melee Weapon 1 | . . . . . . 4 . 2 1 . . . . . Peak Build Rating 183 | 9 12 18 18 19 30 44 55 73 108 110 110 164 179 183 Average Rating 57 | 5 10 16 17 18 23 33 48 66 89 72 87 92 174 173 On Entrance 52 | . 9 12 18 18 19 24 34 55 68 42 110 32 162 179 Naked Turns . | . . . . . . . . . . . . . . . Heaviest Build 86 | 15 33 33 33 34 38 46 45 52 62 18 34 66 86 86 Greatest Support 108 | 40 40 40 40 40 40 40 69 75 75 24 24 99 106 108 Greatest Overweight (x) 2 | 1 . . . . . 2 2 . 1 . 2 1 . 1 Average Overweight (x) . | . . . . . . . . . . . . . . . Largest Inventory Capacity 15 | 8 15 15 15 15 15 15 15 15 15 5 5 5 5 5 Average Capacity 12 | 7 13 15 15 15 15 15 15 15 14 5 5 5 5 5 Most Carried 15 | 6 15 15 15 15 15 15 15 15 15 5 5 5 5 5 Average Carried 11 | 4 11 15 14 14 14 14 14 14 14 4 4 3 4 4 Final Capacity 15 | 8 15 15 15 15 15 15 15 15 5 5 5 5 5 5 Final Carried 15 | 6 15 15 15 15 15 15 15 14 5 5 5 3 5 3 Class Distribution -------------------- 43% | Mutant 22% | Hacker-Mutant 12% | Skirmisher 8% | Scavenger-Gladiator 4% | Hacker-Gladiator Dominant Class ---------------- Mutant | -10/Materials Mutant | -10/Mines Mutant | -10/Exiles Skirmisher | -9/Mines Skirmisher | -8/Materials Mutant | -7/Factory Scavenger-Gladiator | -6/Factory Hacker-Mutant | -5/Factory Hacker-Mutant | -4/Factory Wizard-Mutant | -3/Research Hacker-Gladiator | -3/DSF Hacker-Mutant | -2/Research Scavenger-Sprinter | -1/Access Hacker-Mutant | -1/Command Resources | -11 -10 -10 -10 -9 -8 -7 -6 -5 -4 -3 -3 -2 -1 -1 ----------- Run | Yrd Mat Min Exi Min Mat Fac Fac Fac Fac Res DSF Res Acc Com Matter Collected 3310 | 300 535 . . 305 227 341 313 271 352 . 200 212 150 104 Remotely . | . . . . . . . . . . . . . . . Salvage Created 3784 | 110 588 . . . 134 277 253 87 449 . 289 248 617 732 Parts 240 | 5 46 . . . 10 23 6 6 31 . 30 20 28 35 Haulers Intercepted 6 | . 2 . . . 1 1 . . . . . . 2 . Recyclers Shooed 5 | . . . . . . 2 1 . 1 . . . 1 . Parts Field Recycled . | . . . . . . . . . . . . . . . Retrieved Matter . | . . . . . . . . . . . . . . . Parts Self-Destructed . | . . . . . . . . . . . . . . . Prevented . | . . . . . . . . . . . . . . . Kills | -11 -10 -10 -10 -9 -8 -7 -6 -5 -4 -3 -3 -2 -1 -1 ------- Run | Yrd Mat Min Exi Min Mat Fac Fac Fac Fac Res DSF Res Acc Com Combat Hostiles Destroyed 51 | . 19 . . . 3 4 2 1 9 . 6 3 . 4 Melee 22 | . . . . . . 2 1 . 6 . 6 3 . 4 Guns 6 | . 6 . . . . . . . . . . . . . AOE 23 | . 13 . . . 3 2 1 1 3 . . . . . Classes Destroyed 15 | 2 6 . . . 2 3 . . 1 . 1 . . . Worker 15 | . 2 . . . 4 1 . 1 3 . . . 1 3 Builder 4 | . 1 . . . . 1 . 1 1 . . . . . Tunneler 3 | 1 . . . . . . . . 1 . . . 1 . Hauler 6 | . 2 . . . 1 1 . . . . . . 2 . Recycler 7 | 1 1 . . . . 1 1 . . . . . 1 2 Operator 6 | . . . . . . 1 1 1 . . . 1 1 1 Watcher 15 | . 3 . . . 1 1 . 1 1 . . 1 5 2 Swarmer 15 | . 9 . . . . . . . 6 . . . . . Cutter 5 | . . . . . . 1 . . . . 4 . . . Grunt 13 | . 10 . . . . . 2 . 1 . . . . . Sentry 3 | . . . . . 2 . . . . . . . . 1 Specialist 2 | . . . . . . . . . . . 2 . . . Hunter 4 | . . . . . 1 1 . 1 1 . . . . . Programmer 8 | . . . . . . 2 . . . . . 3 . 3 Heavy 1 | . . . . . . . . . 1 . . . . . Best Kill Streak 8 | 2 8 . . . 3 2 2 2 3 . 3 3 2 4 Combat Bots Only 4 | . 4 . . . 2 1 2 1 3 . 3 3 . 2 Max Kills in Single Turn 3 | 1 3 . . . 2 2 1 2 3 . 1 1 1 1 Gunslinging . | . . . . . . . . . . . . . . . Exploded 3 | . 3 . . . 1 1 1 1 3 . . . . . Melee 1 | . . . . . . 1 1 . 1 . 1 1 . 1 Uniques/NPCs Destroyed . | . . . . . . . . . . . . . . . Combat | -11 -10 -10 -10 -9 -8 -7 -6 -5 -4 -3 -3 -2 -1 -1 -------- Run | Yrd Mat Min Exi Min Mat Fac Fac Fac Fac Res DSF Res Acc Com Hostile Shots Fired 604 | . 41 . . 6 20 32 11 21 107 . 113 14 9 230 Missed 248 | . 12 . . 3 8 8 1 9 41 . 37 5 4 120 Damage Taken 9620 | . 365 . . 40 212 424 265 433 1803 . 1709 367 192 3810 Core 3307 | . 59 . . 13 14 111 102 74 605 . 690 23 . 1616 Absorbed by Shields 167 | . . . . . 17 150 . . . . . . . . Redirected to Shielding 391 | . . . . . . . . . 100 . . 17 65 209 Regen/Repaired (Parts) 343 | . . . . . . . . . . . . 124 43 176 Core Remaining (%) 80 | 100 . . . 71 97 84 88 92 47 . 46 98 . . Volleys Fired 122 | 5 41 . . 8 11 14 1 8 14 . . 4 . 16 Largest 2 | 2 2 . . 1 2 2 1 1 1 . . 2 . 1 Hottest 105 | 40 50 . . 30 66 66 36 81 81 . . 105 . 52 Shots Fired 171 | 10 67 . . 8 22 17 1 8 14 . . 8 . 16 Gun 66 | 10 42 . . 6 . . . . . . . 8 . . Cannon 11 | . . . . . . . . 6 5 . . . . . Launcher 89 | . 25 . . 2 22 17 1 2 4 . . . . 16 Special 5 | . . . . . . . . . 5 . . . . . Kinetic 58 | 10 42 . . 6 . . . . . . . . . . Thermal 8 | . . . . . . . . . . . . 8 . . Explosive 89 | . 25 . . 2 22 17 1 2 4 . . . . 16 Electromagnetic 11 | . . . . . . . . 6 5 . . . . . Robot Hit Streak 17 | 6 8 . . 2 4 4 5 6 9 . . 4 . 17 Robot Miss Streak 5 | 1 3 . . 3 2 5 . 2 3 . . 2 . 1 Penetration Max . | . . . . . . . . . . . . . . . Secondary Targets . | . . . . . . . . . . . . . . . Shots Hit Robots 220 | 7 37 . . 1 7 24 8 6 35 . 10 14 26 45 Core Hits 148 | 3 43 . . 1 15 20 2 5 19 . 6 8 9 17 Critical Kills . | . . . . . . . . . . . . . . . Critical Parts Destroyed 1 | . . . . . . . 1 . . . . . . . Critical Strikes 22 | . . . . . . 4 1 . 2 . 3 2 6 4 Smash 1 | . . . . . . . 1 . . . . . . . Sever 5 | . . . . . . 4 . . 1 . . . . . Impale 16 | . . . . . . . . . 1 . 3 2 6 4 Melee Attacks 198 | . . . . . . 26 14 5 43 . 11 9 40 50 Impact 3 | . . . . . . . 3 . . . . . . . Slashing 44 | . . . . . . 20 11 3 10 . . . . . Piercing 140 | . . . . . . . . . 32 . 11 9 38 50 Sneak Attacks 36 | . . . . . . 5 4 4 8 . 1 . 8 6 Combat Hostiles 2 | . . . . . . 1 . . . . 1 . . . Follow-up Attacks 18 | . . . . . . 2 2 . . . 1 1 4 8 Damage Inflicted 12747 | 84 1536 . . 53 657 1082 527 497 1471 . 476 574 2296 3494 Guns 540 | 84 316 . . 27 . . . . . . . 113 . . Cannons 96 | . . . . . . . . 49 47 . . . . . Explosions 4589 | . 1220 . . . 657 584 48 278 416 . . . . 1386 Melee 7442 | . . . . . . 481 479 170 1004 . 476 461 2296 2075 Ramming 80 | . . . . 26 . 17 . . 4 . . . . 33 Kinetic 427 | 84 316 . . 27 . . . . . . . . . . Thermal 113 | . . . . . . . . . . . . 113 . . Explosive 4589 | . 1220 . . . 657 584 48 278 416 . . . . 1386 Electromagnetic 96 | . . . . . . . . 49 47 . . . . . Impact 104 | . . . . . . . 104 . . . . . . . Slashing 1320 | . . . . . . 481 375 170 294 . . . . . Piercing 6018 | . . . . . . . . . 710 . 476 461 2296 2075 Highest Corruption 23 | . . . . . . 1 . . 1 . 3 6 . 23 Average Corruption 2 | . . . . . . 1 . . 1 . 2 4 . 7 Corruption Purged . | . . . . . . . . . . . . . . . Corruption Blocked . | . . . . . . . . . . . . . . . Effects 24 | . . . . . . 7 . . 3 . 2 5 . 7 Message Errors 8 | . . . . . . 2 . . 2 . 1 2 . 1 Matter Fused 7 | . . . . . . 3 . . 1 . 1 1 . 1 Heat Flow Errors 1 | . . . . . . . . . . . . . . 1 Energy Discharges 1 | . . . . . . . . . . . . 1 . . Parts Rejected 2 | . . . . . . . . . . . . 1 . 1 Data Loss (major) 4 | . . . . . . 1 . . . . . . . 3 Misfires 1 | . . . . . . 1 . . . . . . . . Overload Shots . | . . . . . . . . . . . . . . . Overflow Damage 1776 | . 16 . . . 26 25 177 1 241 . 4 140 538 608 Projectiles . | . . . . . . . . . . . . . . . Explosions 79 | . 16 . . . 26 16 . 1 20 . . . . . Melee 1697 | . . . . . . 9 177 . 221 . 4 140 538 608 Knockbacks 1 | . . . . . . . 1 . . . . . . . Impact 1 | . . . . . . . 1 . . . . . . . Kinetic . | . . . . . . . . . . . . . . . Secondary . | . . . . . . . . . . . . . . . Self-Inflicted Damage 278 | . 79 . . . 45 48 . 34 56 . . . . 16 Shots 10 | . 5 . . . 2 1 . 1 1 . . . . . Rammed 8 | . 1 . . 3 . 1 . . 2 . . . . 1 Targets Rammed 9 | . 1 . . 3 . 1 1 . 2 . . . . 1 Kicked 1 | . . . . . . . 1 . . . . . . . Crushed . | . . . . . . . . . . . . . . . Highest Temperature 313 | . 7 . . 10 6 69 23 50 313 . 11 10 140 122 Average Temperature 37 | . 3 . . 6 3 40 10 7 79 . 11 3 25 7 Received Heat Transfer 1071 | . 129 . . 45 54 . 153 . 114 . 342 18 . 216 Siege Activations . | . . . . . . . . . . . . . . . Robots Corrupted 1 | . . . . . . . 1 . . . . . . . Combat Hostiles . | . . . . . . . . . . . . . . . Parts Fried 1 | . . . . . . . 1 . . . . . . . Impact Corruptions 1 | . . . . . . . 1 . . . . . . . Robots Melted . | . . . . . . . . . . . . . . . Combat Hostiles . | . . . . . . . . . . . . . . . Parts Melted 3 | . . . . . . . . . 3 . . . . . Heat Transferred 222 | . . . . . . . . . . . . 222 . . Parts Sabotaged . | . . . . . . . . . . . . . . . Parts Stolen . | . . . . . . . . . . . . . . . Parts Stripped . | . . . . . . . . . . . . . . . Power Chain Reactions . | . . . . . . . . . . . . . . . Alert | -11 -10 -10 -10 -9 -8 -7 -6 -5 -4 -3 -3 -2 -1 -1 ------- Run | Yrd Mat Min Exi Min Mat Fac Fac Fac Fac Res DSF Res Acc Com Peak Influence 431 | 10 431 148 . 63 288 157 61 241 266 78 105 128 179 341 Initial 148 | . 6 148 . . . 42 40 7 42 54 58 24 76 114 Average 106 | 2 285 148 . 30 110 70 20 41 124 75 79 59 95 220 Maximum Alert Level 2 | . 2 . . . 1 . . 1 1 . . . . 1 Low Security (%) 84 | 100 22 100 . 100 94 100 100 92 84 100 100 100 100 43 Level 1 14 | . 72 . . . 5 . . 7 15 . . . . 56 Level 2 . | . 4 . . . . . . . . . . . . . Level 3 . | . . . . . . . . . . . . . . . Level 4 . | . . . . . . . . . . . . . . . Level 5 . | . . . . . . . . . . . . . . . High Security . | . . . . . . . . . . . . . . . Max Security . | . . . . . . . . . . . . . . . Squads Dispatched 39 | . 4 . . . 1 4 4 5 7 . 3 2 6 3 Investigation 7 | . 2 . . . . . . 1 2 . . . 1 1 Extermination 10 | . . . . . . 2 1 2 1 . . 1 1 2 Reinforcement 22 | . 2 . . . 1 2 3 2 4 . 3 1 4 . Assault . | . . . . . . . . . . . . . . . Garrison . | . . . . . . . . . . . . . . . Intercept . | . . . . . . . . . . . . . . . Searches Triggered . | . . . . . . . . . . . . . . . Construction Impeded 1 | . . . . . . . . . 1 . . . . . Haulers Reinforced 1 | . . . . . . . . . . . . . 1 . Active Scanning Responses . | . . . . . . . . . . . . . . . Cargo Convoy Interrupts . | . . . . . . . . . . . . . . . Stealth | -11 -10 -10 -10 -9 -8 -7 -6 -5 -4 -3 -3 -2 -1 -1 --------- Run | Yrd Mat Min Exi Min Mat Fac Fac Fac Fac Res DSF Res Acc Com Distress Signals 13 | . 1 . . . 3 . . . 1 . . . 3 5 Communications Jammed . | . . . . . . . . . . . . . . . Distress Signals . | . . . . . . . . . . . . . . . Times Spotted 192 | . 24 . . 4 5 16 13 13 48 . 13 8 17 31 Peak Tracking Total 24 | . 3 . . 3 4 5 4 4 9 . 8 3 8 24 Tactical Retreats 15 | . . . . . . . . . 2 . 1 . 6 6 Traps | -11 -10 -10 -10 -9 -8 -7 -6 -5 -4 -3 -3 -2 -1 -1 ------- Run | Yrd Mat Min Exi Min Mat Fac Fac Fac Fac Res DSF Res Acc Com Traps Triggered 8 | . . . . . . . . . 2 . . 6 . . Indirectly . | . . . . . . . . . . . . . . . Trap Hack Attempts . | . . . . . . . . . . . . . . . Triggered . | . . . . . . . . . . . . . . . Disarmed . | . . . . . . . . . . . . . . . Reprogrammed . | . . . . . . . . . . . . . . . Reused . | . . . . . . . . . . . . . . . Traps Extracted . | . . . . . . . . . . . . . . . Installed . | . . . . . . . . . . . . . . . Triggered . | . . . . . . . . . . . . . . . Machines | -11 -10 -10 -10 -9 -8 -7 -6 -5 -4 -3 -3 -2 -1 -1 ---------- Run | Yrd Mat Min Exi Min Mat Fac Fac Fac Fac Res DSF Res Acc Com Machines Disabled 25 | . 4 . . 1 4 7 . 6 1 . . . . 2 Max in Single Turn 6 | . 1 . . . 2 2 . 6 1 . . . . 1 Garrison Access 1 | . . . . . . . . 1 . . . . . . Machines Repaired . | . . . . . . . . . . . . . . . Machines Dismantled . | . . . . . . . . . . . . . . . Machines Sabotaged . | . . . . . . . . . . . . . . . Overloaded Fab Kills . | . . . . . . . . . . . . . . . Hacking | -11 -10 -10 -10 -9 -8 -7 -6 -5 -4 -3 -3 -2 -1 -1 --------- Run | Yrd Mat Min Exi Min Mat Fac Fac Fac Fac Res DSF Res Acc Com Machines Accessed 45 | . 6 . 1 . 3 . 3 4 6 3 . 4 8 7 Terminals 33 | . 3 . . . 3 . 3 2 5 2 . 3 6 6 Fabricators 1 | . . . . . . . . . . . . . 1 . Repair Stations 5 | . 1 . . . . . . . . 1 . 1 1 1 Recycling Units 3 | . 2 . . . . . . . 1 . . . . . Scanalyzers . | . . . . . . . . . . . . . . . Garrison Access 2 | . . . . . . . . 2 . . . . . . Total Hacks 145 | . 16 . 1 . 7 . 7 24 31 10 . 9 21 19 Successful 80 | . 12 . 1 . 1 . 2 16 17 6 . 4 10 11 Failed 65 | . 4 . . . 6 . 5 8 14 4 . 5 11 8 Catastrophic 8 | . . . . . 1 . 1 . 2 . . 2 1 1 Database Lockouts . | . . . . . . . . . . . . . . . Manual 59 | . 5 . 1 . 4 . 3 13 12 4 . 5 6 6 Terminals 109 | . 9 . . . 7 . 7 18 27 7 . 6 16 12 Fabricators 2 | . . . . . . . . . . . . . 2 . Repair Stations 17 | . 1 . . . . . . . . 3 . 3 3 7 Recycling Units 10 | . 6 . . . . . . . 4 . . . . . Scanalyzers . | . . . . . . . . . . . . . . . Garrison Access 6 | . . . . . . . . 6 . . . . . . Terminal Hacks 42 | . 5 . 1 . . . 1 10 13 3 . . 4 5 Record 2 | . . . . . . . . . . . . . . 2 Robot Schematic 1 | . . . . . . . . 1 . . . . . . Robot Analysis 1 | . . . . . . . . 1 . . . . . . Prototype ID Bank 4 | . 1 . . . . . . 2 . 1 . . . . Open Door 4 | . . . . . . . . . . . . . 3 1 Open DSF 2 | . . . . . . . . . 1 1 . . . . Level Access Points 1 | . . . . . . . . . 1 . . . . . Branch Access Points 1 | . . . . . . . . . 1 . . . . . Machine Index 1 | . . . . . . . . . 1 . . . . . Alert Level 6 | . 2 . . . . . . 1 2 1 . . . . Unreport Threat 4 | . . . . . . . 1 1 1 . . . 1 . Locate Traps 3 | . 1 . . . . . . . 2 . . . . . Transport Status 1 | . . . . . . . . 1 . . . . . . Recall Investigation 1 | . . . . . . . . . 1 . . . . . Registered Components 4 | . . . . . . . . 1 2 . . . . 1 Registered Prototypes 1 | . . . . . . . . 1 . . . . . . Zone Layout 3 | . 1 . . . . . . 1 1 . . . . . Derelict Proto ID Bank 1 | . . . 1 . . . . . . . . . . . Disengage Seal 1 | . . . . . . . . . . . . . . 1 Fabricator Hacks . | . . . . . . . . . . . . . . . Repair Station Hacks 10 | . . . . . . . . . . 1 . 3 2 4 Scan Component 4 | . . . . . . . . . . . . 1 1 2 Repair 4 | . . . . . . . . . . . . 1 1 2 Refit 2 | . . . . . . . . . . 1 . 1 . . Recycling Unit Hacks 3 | . 2 . . . . . . . 1 . . . . . Report Inventory 3 | . 2 . . . . . . . 1 . . . . . Scanalyzer . | . . . . . . . . . . . . . . . Garrison Access Hacks 1 | . . . . . . . . 1 . . . . . . Seal Access 1 | . . . . . . . . 1 . . . . . . Unauthorized Hacks 24 | . 5 . . . 1 . 1 5 3 2 . 1 4 2 Terminals 15 | . . . . . 1 . 1 3 2 2 . 1 3 2 Assimilate 1 | . . . . . . . . . . . . . 1 . Botnet 11 | . . . . . 1 . 1 2 1 1 . 1 2 2 Operators 3 | . . . . . . . . 1 1 1 . . . . Fabricators 1 | . . . . . . . . . . . . . 1 . Fabnet 1 | . . . . . . . . . . . . . 1 . Repair Stations 1 | . 1 . . . . . . . . . . . . . Patch 1 | . 1 . . . . . . . . . . . . . Recycling Units 5 | . 4 . . . . . . . 1 . . . . . Monitor 1 | . 1 . . . . . . . . . . . . . Reject 1 | . 1 . . . . . . . . . . . . . Recyclers 1 | . 1 . . . . . . . . . . . . . Tunnel 2 | . 1 . . . . . . . 1 . . . . . Scanalyzers . | . . . . . . . . . . . . . . . Garrison Access 2 | . . . . . . . . 2 . . . . . . Watchers 1 | . . . . . . . . 1 . . . . . . Eject 1 | . . . . . . . . 1 . . . . . . Data Cores Recovered 3 | . . . . . . . 1 . . . . 1 . 1 Used . | . . . . . . . . . . . . . . . Hacking Detections 34 | . 4 . . . 3 . 3 2 5 2 . 4 6 5 Full Trace Events 2 | . . . . . . . . . 1 . . . 1 . Feedback Events . | . . . . . . . . . . . . . . . Feedback Blocked . | . . . . . . . . . . . . . . . Robot Schematics Acquired 1 | . . . . . . . . 1 . . . . . . Robots Built . | . . . . . . . . . . . . . . . Authchips . | . . . . . . . . . . . . . . . Time . | . . . . . . . . . . . . . . . Total Robot Build Rating . | . . . . . . . . . . . . . . . Part Schematics Acquired . | . . . . . . . . . . . . . . . Parts Built . | . . . . . . . . . . . . . . . Authchips . | . . . . . . . . . . . . . . . Time . | . . . . . . . . . . . . . . . Total Part Build Rating . | . . . . . . . . . . . . . . . Parts Repaired 4 | . . . . . . . . . . . . 1 1 2 Time 96 | . . . . . . . . . . . . 31 31 34 Parts Recycled . | . . . . . . . . . . . . . . . Recycled Matter . | . . . . . . . . . . . . . . . Retrieved Matter . | . . . . . . . . . . . . . . . Retrieved Components . | . . . . . . . . . . . . . . . Parts Scanalyzed . | . . . . . . . . . . . . . . . Part Schematics Acquired . | . . . . . . . . . . . . . . . Parts Damaged . | . . . . . . . . . . . . . . . Bothacking | -11 -10 -10 -10 -9 -8 -7 -6 -5 -4 -3 -3 -2 -1 -1 ------------ Run | Yrd Mat Min Exi Min Mat Fac Fac Fac Fac Res DSF Res Acc Com Used RIF Installer . | . . . . . . . . . . . . . . . Robots Hacked 10 | . . . . . . 4 . 2 3 . . . 1 . Non-combat 6 | . . . . . . 3 . 1 1 . . . 1 . Combat 4 | . . . . . . 1 . 1 2 . . . . . Robot Hacks Applied 14 | . . . . . . 6 . 2 5 . . . 1 . parse_system 6 | . . . . . . 1 . 1 4 . . . . . no_distress 4 | . . . . . . 2 . . 1 . . . 1 . find_chute 1 | . . . . . . . . 1 . . . . . . find_fabricator 1 | . . . . . . 1 . . . . . . . . find_dsf 1 | . . . . . . 1 . . . . . . . . find_recycling 1 | . . . . . . 1 . . . . . . . . Relay Couplers Released 7 | . . . . . . . 3 4 . . . . . . Ejected 4 | . . . . . . . . 4 . . . . . . Programmers 3 | . . . . . . . 3 . . . . . . . Fabnet Peak Effective % . | . . . . . . . . . . . . . . . Robots Rewired . | . . . . . . . . . . . . . . . Allies Hacked . | . . . . . . . . . . . . . . . Hacks Repelled . | . . . . . . . . . . . . . . . Allies | -11 -10 -10 -10 -9 -8 -7 -6 -5 -4 -3 -3 -2 -1 -1 -------- Run | Yrd Mat Min Exi Min Mat Fac Fac Fac Fac Res DSF Res Acc Com Total Allies 5 | . . 3 . 1 . . . . . . . . 1 . Largest Group 3 | . . 3 3 3 . . . . . . . . 1 . Highest-Rated Group 55 | . . 40 40 55 . . . . . . . . 45 . Highest-Rated Ally 45 | . . 16 16 31 . . . . . . . . 45 . Total Orders . | . . . . . . . . . . . . . . . Ally Attacks 25 | . . . . 25 . . . . . . . . . . Total Damage 365 | . . . . 365 . . . . . . . . . . Kills 7 | . . . . 7 . . . . . . . . . . Allies Corrupted . | . . . . . . . . . . . . . . . Allies Melted . | . . . . . . . . . . . . . . . Intel | -11 -10 -10 -10 -9 -8 -7 -6 -5 -4 -3 -3 -2 -1 -1 ------- Run | Yrd Mat Min Exi Min Mat Fac Fac Fac Fac Res DSF Res Acc Com Robot Analysis Total 1 | . . . . . . . . 1 . . . . . . Derelict Logs Recovered 1 | . . 1 . . . . . . . . . . . . Drone Launches . | . . . . . . . . . . . . . . . Drone Recoveries . | . . . . . . . . . . . . . . . Exploration | -11 -10 -10 -10 -9 -8 -7 -6 -5 -4 -3 -3 -2 -1 -1 ------------- Run | Yrd Mat Min Exi Min Mat Fac Fac Fac Fac Res DSF Res Acc Com Turns Passed 8942 | 133 970 201 542 806 537 1862 584 651 706 165 239 399 524 623 Spaces Moved 7263 | 72 509 124 337 462 302 1122 431 471 863 260 110 334 990 876 Core 287 | 12 . . . . . . 3 . 30 148 24 70 . . Treads 2538 | 60 509 124 337 462 302 744 . . . . . . . . Legs 611 | . . . . . . . 329 282 . . . . . . Wheels 162 | . . . . . . 162 . . . . . . . . Hover 3280 | . . . . . . . . 189 833 112 16 264 990 876 Flight 385 | . . . . . . 216 99 . . . 70 . . . Fastest Speed 17 | 50 160 160 160 160 160 17 24 40 36 50 21 33 33 37 Average Speed 93 | 142 160 160 160 160 160 142 103 88 43 61 58 59 34 38 Slowest Speed 190 | 160 160 160 160 160 160 160 190 120 104 76 150 105 37 160 Overloaded Moves 20 | . . . . . . 14 . . . . 6 . . . Propulsion Burnouts . | . . . . . . . . . . . . . . . Robots Hopped 4 | . . . . . . 4 . . . . . . . . Cave-ins Triggered . | . . . . . . . . . . . . . . . Exploration Rate (%) 34 | 6 87 33 62 62 39 32 16 15 20 5 88 9 19 27 Regions Visited 14 Branch Regions 4 Pre-discovered Areas 2 | . 1 . . . . . . . 1 . . . . . Known Exits Taken 6 | . . . . . 1 1 1 1 1 1 . . . . Unknown Exits Taken 7 | 1 1 1 1 1 . . . . . . . 1 1 . Scrap Searched 3 | . . . . 3 . . . . . . . . . . Spaces Dug 22 | . . . . 6 . 2 1 . 1 . . . 6 6 Terrain Destroyed 498 | . 126 . . 12 168 85 6 56 33 . . . 6 6 Melee 16 | . . . . . . 2 1 . 1 . . . 6 6 Projectile . | . . . . . . . . . . . . . . . AOE 482 | . 126 . . 12 168 83 5 56 32 . . . . . Terrain Rammed . | . . . . . . . . . . . . . . . Walls Destroyed . | . . . . . . . . . . . . . . . Machines Disabled . | . . . . . . . . . . . . . . . Actions | -11 -10 -10 -10 -9 -8 -7 -6 -5 -4 -3 -3 -2 -1 -1 --------- Run | Yrd Mat Min Exi Min Mat Fac Fac Fac Fac Res DSF Res Acc Com Total 8899 | 89 599 126 340 521 332 1339 545 692 1107 265 263 500 1107 1074 Wait 967 | . 25 2 2 44 9 130 72 160 130 . 110 109 53 121 Move 7242 | 71 508 123 336 461 301 1115 430 470 861 259 109 333 989 876 Hop 3 | . . . . . . 3 . . . . . . . . Pick Up 78 | 6 10 . 1 2 3 14 7 8 4 1 4 3 9 6 Fast Attach 80 | 7 . . . . 3 8 7 . 12 2 14 17 6 4 Attach 36 | . . . . 1 2 3 6 4 10 2 . 4 2 2 Detach 4 | . . . . . . . 1 1 . 1 . . . 1 Swap 82 | . 7 1 . 1 2 10 4 22 17 . 5 4 4 5 Drop 89 | . 7 . 1 1 1 19 4 14 9 . 12 4 12 5 Fire 122 | 5 41 . . 8 11 14 1 8 14 . . 4 . 16 Melee 168 | . . . . . . 23 12 5 43 . 9 7 32 37 Ram 3 | . . . . . . . . . 2 . . . . 1 Kick 1 | . . . . . . . 1 . . . . . . . Crush 4 | . 1 . . 3 . . . . . . . . . . Escape Stasis 20 | . . . . . . . . . 5 . . 15 . . Rewire . | . . . . . . . . . . . . . . . Trap . | . . . . . . . . . . . . . . . Miscellaneous . | . . . . . . . . . . . . . . . Route ------- -11/Scrapyard -10/Materials (discovered 4 exits: [*Mat x2] / [*Min] / [*Sub]) -10/Mines -10/Exiles (discovered 2 exits: [*Min x2]) -9/Mines -8/Materials (discovered 2 exits: *Fac / *Sto) -7/Factory (discovered 2 exits: *Fac / [*Low]) -6/Factory -5/Factory -4/Factory (discovered 8 exits: *Res x4 / Upp x2 / Ext x2) -3/Research (discovered 2 exits: [*Arm] / DSF) -3/DSF -2/Research -1/Access -1/Command History --------- Turn | Location | Event 2 | -11/Scrapyard | Met Revision 17 8 | -11/Scrapyard | Discovered new exit (range 16) 134 | -11/Scrapyard | Entered Materials 322 | -10/Materials | Build established: Mutant 426 | -10/Materials | Discovered new exit (range 5) 562 | -10/Materials | Discovered new exit (range 15) 957 | -10/Materials | Discovered new exit (range 15) 1083 | -10/Materials | Discovered new exit (range 9) 1104 | -10/Materials | Entered Mines 1108 | -10/Mines | Met a Derelict bent on vengeance 1148 | -10/Mines | Assisted by bots powering up and referring to "LRC-V3" 1167 | -10/Mines | Found a damaged Exp. Sensor Array with a note attached 1170 | -10/Mines | Found Prototype Device 1170 | -10/Mines | Identified Exp. Sensor Array 1199 | -10/Mines | Learned 2 Materials zone layouts 1296 | -10/Mines | Deemed a non-threat by the Exiles lab entrance 1296 | -10/Mines | Discovered new exit (range 5) 1305 | -10/Mines | Entered Exiles 1305 | -10/Exiles | Accompanied by 3 allies 1344 | -10/Exiles | Met 8R-AWN 1371 | -10/Exiles | Met EX-HEX 1421 | -10/Exiles | Met EX-BIN 1440 | -10/Exiles | Aligned with FarCom system 1441 | -10/Exiles | Given EX-Vault access code 1478 | -10/Exiles | Opened EX-Vault 1490 | -10/Exiles | Found Cloak of Protection 1525 | -10/Exiles | Warned to stay clear of 0b10 Research branches 1571 | -10/Exiles | Met EX-DEC 1638 | -10/Exiles | Discovered new exit (range 14) 1821 | -10/Exiles | Discovered new exit (range 15) 1847 | -10/Exiles | Left Exiles lab with Cloak of Protection 1847 | -10/Exiles | Entered Mines 1847 | -9/Mines | Accompanied by 3 allies 2095 | -9/Mines | Discovered new exit (range 16) 2151 | -9/Mines | Build established: Skirmisher 2374 | -9/Mines | Assembled infested the area 2376 | -9/Mines | Received a Mining Laser from a helpful Derelict 2653 | -9/Mines | Entered Materials 2653 | -8/Materials | Evolved 4 slots: Propulsion x2, Utility x2 2654 | -8/Materials | Identified exit to Storage 3109 | -8/Materials | Met 7R-MNS 3166 | -8/Materials | Discovered new exit (range 16) 3188 | -8/Materials | Identified exit to Factory 3190 | -8/Materials | Entered Factory 3190 | -7/Factory | Evolved 2 slots: Power x1, Propulsion x1 3191 | -7/Factory | Caught up to 7R-MNS 3299 | -7/Factory | Build established: Mutant 4382 | -7/Factory | Discovered new exit (range 13) 5049 | -7/Factory | Discovered new exit (range 10) 5051 | -7/Factory | Identified exit to Factory 5052 | -7/Factory | Entered another Factory area 5052 | -6/Factory | Evolved 2 slots: Utility x2 5053 | -6/Factory | Caught up to 7R-MNS 5160 | -6/Factory | Lost 5 parts (5n) 5544 | -6/Factory | Build established: Scavenger-Gladiator 5623 | -6/Factory | Discovered new exit (range 11) 5635 | -6/Factory | Identified exit to Factory 5636 | -6/Factory | Entered another Factory area 5636 | -5/Factory | Evolved 2 slots: Propulsion x1, Utility x1 5637 | -5/Factory | Caught up to 7R-MNS 5753 | -5/Factory | Spotted B-75 Beast 6219 | -5/Factory | Build established: Hacker-Mutant 6273 | -5/Factory | Discovered new exit (range 5) 6275 | -5/Factory | Identified exit to Factory 6287 | -5/Factory | Entered another Factory area 6287 | -4/Factory | Evolved 2 slots: Propulsion x1, Utility x1 6288 | -4/Factory | Caught up to 7R-MNS 6353 | -4/Factory | Identified exit to Research 6594 | -4/Factory | Identified exit to Upper Caves 6594 | -4/Factory | Identified exit to Extension 6974 | -4/Factory | 7R-MNS lamented failing the tripod run 6986 | -4/Factory | Core integrity fell below 50% 6993 | -4/Factory | Entered Research 6993 | -3/Research | Evolved 2 slots: Utility x1, Weapon x1 7014 | -3/Research | Lost 15 parts (2p6n4u3w) 7062 | -3/Research | Discovered new exit (range 15) 7063 | -3/Research | Identified exit to DSF 7158 | -3/Research | Entered DSF 7174 | -3/DSF | Additional patrols routed to DSF 7220 | -3/DSF | Lost 8 parts (2p3n2u1w) 7390 | -3/DSF | Discovered new exit (range 15) 7395 | -3/DSF | Core integrity fell below 50% 7397 | -3/DSF | Entered Research 7397 | -2/Research | Evolved 2 slots: Propulsion x1, Utility x1 7425 | -2/Research | Lost 10 parts (1p6n3u) 7481 | -2/Research | Repaired Graphene Brace 7788 | -2/Research | Discovered new exit (range 5) 7796 | -2/Research | Entered Access 7796 | -1/Access | Evolved 2 slots: Power x1, Utility x1 7834 | -1/Access | Repaired Imp. Antigrav System 8239 | -1/Access | Found Launcher Loader 8318 | -1/Access | Discovered new exit (range 7) 8320 | -1/Access | Entered Command 8367 | -1/Command | Repaired Imp. Utility Shielding 8390 | -1/Command | Repaired Antigrav Array 8413 | -1/Command | Found Fusion Bomb Launcher 8415 | -1/Command | Found Fusion Bomb Launcher 8578 | -1/Command | Disengaged cave seal 8578 | -1/Command | Wild derelicts emerged from the dark tunnel 8600 | -1/Command | Found Fusion Bomb Launcher 8601 | -1/Command | Found Fusion Bomb Launcher 8888 | -1/Command | Spotted M Guard 8888 | -1/Command | Spotted M Guard 8888 | -1/Command | Spotted Combat Programmer 8889 | -1/Command | Spotted Combat Programmer 8903 | -1/Command | System corruption reached 10% 8904 | -1/Command | Met MAIN.C 8908 | -1/Command | 0b10 Conduit disabled 8930 | -1/Command | Core integrity fell below 50% 8938 | -1/Command | Core integrity fell below 20% 8943 | -1/Command | Destroyed by P-80 Master with Gamma Rifle Last Messages --------------- Programmer, system corruption cleaned. 08927_ Penetrated by EMDS Slug. 08931_ EMDS Slug penetrates Reinforced Barrier. 08931_ Combat Programmer resets Combat Programmer, system corruption cleaned. 08933_ Penetrated by EMDS Slug. 08933_ EMDS Slug penetrates MAIN.C. 08934_ Cmb. Antigrav System destroyed. 08935_ Cmb. Linear Gravjet destroyed. 08935_ EMDS Slug penetrates MAIN.C. 08936_ Penetrated by EMDS Slug. 08936_ Cmb. Linear Gravjet destroyed. 08938_ Penetrated by EMDS Slug. 08941_ EMDS Slug penetrates 0b10 Conduit. 08941_ EMDS Slug penetrates MAIN.C. 08941_ P-80 Master resets Combat Programmer, system corruption cleaned. 08942_ Enh. Force Lance follow-up attack on MAIN.C. 08943_ Penetrated by EMDS Slug. Map ----- +----------------------------------------------------+ | ?????????????????????????????????????????????????? | | ?????????????????????????????????????????????????? | | ?????????????????????????????????????????????????? | | ?????????????????????????????????????????????????? | | ?????????????????????????????????????????????????? | | ?????????????????????????????????????????????????? | | ?????????????????????????????????????????????????? | | ?????????????????????????????????????????????????? | | ?????????????????????????????????????????????????? | | ?????????????????????????????????????????????????? | | ?????????????????????????????????????????????????? | | ?????????????????????????????????????????????????? | | ?????????????????????????????????????????????????? | | ?????????????????????????????????????????????????? | | ?????????????????????????????????????????????????? | | ?????????????????????????????????????????????????? | | ???????????????###################???????????????? | | ??????????????""" " #???????????????? | | ?????????????? #???????????????? | | ????????????????" "" ################# | | ??????????????"""""" ppp | | ??????????????? " Y | | ??????????????? """ pY l / | | ??????????????? "" ################# | | ?????????????? "" #???????????????? | | ???????????? " MMM@ #???????????????? | | ???????????# MMM ""#???????????????? | | ???????????# """ MMM """#???????????????? | | ?????????????" """#???????????????? | | ???????????# """#???????????????? | | ???????????? " #???????????????? | | ???????????? " #???????????????? | | ???????????? " " #???????????????? | | ????????????? """ " " """" #???????????????? | | ????????????? " " " " #???????????????? | | ?????????????? ""?""""""" " #???????????????? | | ???????????????????" ?" """""???????????????????? | | ??????????????????????" " "???????????????????? | | ????????????????????????#?##?????????????????????? | | ?????????????????????????????????????????????????? | | ?????????????????????????????????????????????????? | | ?????????????????????????????????????????????????? | | ?????????????????????????????????????????????????? | | ?????????????????????????????????????????????????? | | ?????????????????????????????????????????????????? | | ?????????????????????????????????????????????????? | | ?????????????????????????????????????????????????? | | ?????????????????????????????????????????????????? | | ?????????????????????????????????????????????????? | | ?????????????????????????????????????????????????? | +----------------------------------------------------+ Best States ------------- Heat Dissipation 90 Energy Generation 70 Energy Capacity 940 Matter Stores 300 Matter Capacity 300 Sight Range 22 Robot Scan Range 20 Terrain Scan Range 16 Terrain Scan Density 10 Cloak Strength 5 Power Amplification 30 Additional Mass Support 9 Base Temperature (-) 200 Armor Coverage 150 Power Shielding 66 Utility Shielding 66 Point Defense Rating 160 Melee Speed Boost 20 Phase Shifting 15 Evasion (%) 82 Melee Accuracy 13 Target Analysis 8 Recoil Reduction 2 Force Boost 20 Offensive Hacking 42 Defensive Hacking 34 Item Schematics ----------------- None Robot Schematics ------------------ A-02 Transporter | -5/Factory | Hacked Fabricated ------------ Nothing Alien Tech Used ----------------- None Achievements -------------- Meet Your Maker Challenges ------------ None Game ------ Seed ArcAntimatterWings Manual? 0 Play Time 02:11:29 Cumulative 111.7 hours Start 2024.11.20 @ 20:45:31 End 2024.11.20 @ 23:00:19 Sessions 1 Manual Loads 0 Difficulty Rogue Special Mode None Game No. 60 Rogue 60 Adventurer 0 Explorer 0 Win Type - Total 2 Types 2/0/0/0/0/0/0/0/0 Lore% 43 Gallery% 61 Achievement% 53 Wizard Run 0 Options --------- Layout 1 ASCII 0 Keyboard 0 Movement Mouse Keybinds 0 Fullscreen 1 Font 24/Smallcaps Map View 50x35 Zoom Use 0% Tactical HUD 1 Map Filters NONE Filters NONE Steam 1 RUN: c0d81806-28be-4368-8bcb-985dd72272e8